fUSD/lending_fUSD_20240125
["ID","MTS","AMOUNT","RATE_DAILY","PERIOD"]
[312751760,1706193075132,-530.56571045,0.00059459,120]
[312751761,1706193075141,-158.0,0.000595,120]
[312751762,1706193075150,-599.99999901,0.000597,30]
[312751763,1706193075160,-181.199999,0.00059702,30]
[312751764,1706193075169,-799.36212729,0.00059703,120]
[312751765,1706193075178,-153.81421217,0.00059724,120]
[312751766,1706193075187,-594.23,0.00059726,120]
[312751767,1706193075197,-500.0,0.00059726,120]
[312751768,1706193075206,-500.0,0.00059726,120]
[312751769,1706193075216,-500.0,0.00059726,120]
[312751770,1706193075225,-571.18,0.00059726,120]
[312751771,1706193075234,-2954.82,0.00059726,120]
[312751772,1706193075244,-500.0,0.00059726,2]
[312751773,1706193075254,-500.0,0.00059726,2]
[312751774,1706193075263,-500.0,0.00059726,120]
[312751775,1706193075274,-500.0,0.00059726,120]
[312751776,1706193075284,-500.0,0.00059726,120]
[312751777,1706193075294,-500.0,0.00059726,120]
[312751778,1706193075304,-500.0,0.00059726,120]
[312751779,1706193075314,-500.0,0.00059726,120]
[312751780,1706193075324,-500.0,0.00059726,120]
[312751781,1706193075333,-500.0,0.00059726,120]
[312751782,1706193075343,-548.95,0.00059726,120]
[312751783,1706193075353,-500.0,0.00059726,120]
[312751784,1706193075362,-500.0,0.00059726,120]
[312751785,1706193075372,-752.6,0.00059726,120]
[312751786,1706193075381,-500.0,0.00059726,120]
[312751787,1706193075392,-500.0,0.00059726,120]
[312751788,1706193075402,-500.0,0.00059726,120]
[312751789,1706193075412,-500.0,0.00059726,120]
[312751790,1706193075421,-546.84,0.00059726,2]
[312751791,1706193075431,-600.0,0.00059726,120]
[312751792,1706193075441,-500.0,0.00059726,120]
[312751793,1706193075451,-864.26,0.00059726,120]
[312751794,1706193075465,-500.0,0.00059726,120]
[312751795,1706193075474,-766.48,0.00059726,120]
[312751796,1706193075485,-500.0,0.00059726,120]
[312751797,1706193075495,-659.91,0.00059726,120]
[312751798,1706193075505,-500.0,0.00059726,120]
[312751799,1706193075516,-500.0,0.00059726,7]
[312751800,1706193075526,-500.0,0.00059726,120]
[312751801,1706193075537,-1269.17,0.00059726,2]
[312751802,1706193075546,-500.0,0.00059726,120]
[312751803,1706193075556,-869.4,0.00059726,120]
[312751804,1706193075567,-352.33820514,0.00059726,120]
[312751805,1706193075576,-1000.0,0.00059726,120]
[312751806,1706193075585,-500.0,0.00059726,120]
[312751807,1706193075595,-500.0,0.00059726,120]
[312751808,1706193075607,-500.0,0.00059726,120]
[312751809,1706193075616,-256.24374287,0.00059726,120]
[312751810,1706193075626,-500.0,0.00059726,120]
[312751811,1706193075637,-500.0,0.00059726,120]
[312751812,1706193075646,-500.0,0.00059726,120]
[312751813,1706193075657,-150.0,0.00059726,120]
[312751814,1706193075667,-500.0,0.00059726,120]
[312751815,1706193075676,-500.0,0.00059726,120]
[312751816,1706193075686,-500.0,0.00059726,120]
[312751817,1706193075695,-577.94818032,0.00059726,120]
[312751818,1706193075704,-500.0,0.00059726,120]
[312751819,1706193075713,-500.0,0.00059726,120]
[312751820,1706193075722,-500.0,0.00059726,120]
[312751821,1706193075732,-500.0,0.00059726,120]
[312751822,1706193075742,-500.0,0.00059726,120]
[312751823,1706193075752,-500.0,0.00059726,120]
[312751824,1706193075763,-500.0,0.00059726,120]
[312751825,1706193075772,-500.0,0.00059726,120]
[312751826,1706193075783,-500.0,0.00059726,120]
[312751827,1706193075794,-175.66238612,0.00059726,120]
[312751828,1706193075805,-415.98972132,0.00059726,120]
[312751829,1706193075816,-500.0,0.00059726,120]
[312751830,1706193075825,-500.0,0.00059726,120]
[312751831,1706193075834,-500.0,0.00059726,120]
[312751832,1706193075846,-500.0,0.00059726,120]
[312751833,1706193075856,-500.0,0.00059726,120]
[312751834,1706193075867,-161.9,0.00059726,120]
[312751835,1706193075878,-500.0,0.00059726,120]
[312751836,1706193075888,-523.16,0.00059726,120]
[312751837,1706193075899,-500.0,0.00059726,120]
[312751838,1706193075910,-500.0,0.00059726,120]
[312751839,1706193075921,-500.0,0.00059726,120]
[312751840,1706193075931,-516.21,0.00059726,120]
[312751841,1706193075940,-500.0,0.00059726,120]
[312751842,1706193075951,-500.0,0.00059726,120]
[312751843,1706193075962,-500.0,0.00059726,120]
[312751844,1706193075971,-500.0,0.00059726,120]
[312751845,1706193075981,-206.58,0.00059726,120]
[312751846,1706193075991,-500.0,0.00059726,120]
[312751847,1706193076000,-500.0,0.00059726,120]
[312751848,1706193076010,-500.0,0.00059726,120]
[312751849,1706193076019,-500.0,0.00059726,120]
[312751850,1706193076030,-500.0,0.00059726,120]
[312751851,1706193076041,-566.9,0.00059726,120]
[312751852,1706193076050,-244.4,0.00059726,120]
[312751853,1706193076060,-500.0,0.00059726,120]
[312751854,1706193076069,-791.92,0.00059726,120]
[312751855,1706193076079,-558.5,0.00059726,120]
[312751856,1706193076088,-1129.38,0.00059726,120]
[312751857,1706193076098,-558.48,0.00059726,120]
[312751858,1706193076107,-346.41,0.00059726,120]
[312751859,1706193076117,-500.0,0.00059726,120]
[312751860,1706193076127,-500.0,0.00059726,120]
[312751861,1706193076137,-716.28,0.00059726,120]
[312751862,1706193076147,-500.0,0.00059726,120]
[312751863,1706193076158,-500.0,0.00059726,120]
[312751864,1706193076167,-500.0,0.00059726,120]
[312751865,1706193076177,-500.0,0.00059726,120]
[312751866,1706193076187,-638.2,0.00059726,120]
[312751867,1706193076197,-500.0,0.00059726,120]
[312751868,1706193076206,-500.0,0.00059726,120]
[312751869,1706193076216,-1491.0,0.00059726,120]
[312751870,1706193076225,-1489.78,0.00059726,5]
[312751871,1706193076235,-1833.59,0.00059726,5]
[312751872,1706193076245,-500.0,0.00059726,120]
[312751873,1706193076255,-500.0,0.00059726,120]
[312751874,1706193076265,-500.0,0.00059726,120]
[312751875,1706193076274,-1117.24,0.00059726,120]
[312751876,1706193076283,-500.0,0.00059726,120]
[312751877,1706193076293,-500.0,0.00059726,120]
[312751878,1706193076302,-799.36212729,0.00059752,120]
[312751879,1706193076315,-799.36212729,0.0005979,120]
[312751880,1706193076324,-1254.06,0.000598,60]
[312751881,1706193076333,-153.31145121,0.00059818,120]
[312751882,1706193076343,-150.0,0.0005985,120]
[312751883,1706193076352,-150.0,0.0005985,120]
[312751884,1706193076361,-152.22002784,0.0005985,120]
[312751885,1706193076371,-151.41572837,0.0005985,120]
[312751886,1706193076380,-150.0,0.0005985,120]
[312751887,1706193076389,-153.10347597,0.0005985,120]
[312751888,1706193076399,-152.73336286,0.0005985,120]
[312751889,1706193076408,-157.53631418,0.0005985,120]
[312751890,1706193076417,-155.45187413,0.0005985,120]
[312751891,1706193076427,-150.0,0.0005985,120]
[312751892,1706193076437,-200.0,0.00059863,120]
[312751893,1706193076447,-600.06277182,0.000599,30]
[312751894,1706193076456,-153.90506378,0.00059945,120]
[312751895,1706193076465,-200.0,0.00059987,96]
[312751896,1706193076474,-200.0,0.00059987,100]
[312751897,1706193076483,-200.0,0.00059987,88]
[312751898,1706193076493,-200.0,0.00059987,84]
[312751899,1706193076502,-200.0,0.00059987,99]
[312751900,1706193076511,-200.0,0.00059987,100]
[312751901,1706193076520,-200.0,0.00059987,59]
[312751902,1706193076529,-200.0,0.00059987,78]
[312751903,1706193076538,-667.30341042,0.00059989,39]
[312751904,1706193076547,-162.11680976,0.00059997,2]
[312751905,1706193076557,-500.0,0.00059998,120]
[312751906,1706193076570,-305.72950203,0.00059999,120]
[312751907,1706193076595,-1748.60074517,0.00059999,120]
[312751908,1706193076605,-500.0,0.00059999,120]
[312751909,1706193076614,-1748.60074517,0.00059999,120]
[312751910,1706193076624,-500.0,0.00059999,120]
[312751911,1706193076634,-1748.60074517,0.00059999,120]
[312751912,1706193076644,-1748.60074517,0.00059999,120]
[312751913,1706193076654,-467.95153309,0.00059999,120]
[312751914,1706193076664,-1748.60074517,0.00059999,120]
[312751915,1706193076674,-1748.60074517,0.00059999,120]
[312751916,1706193076683,-1748.60074517,0.00059999,120]
[312751917,1706193076692,-1748.60074517,0.00059999,120]
[312751918,1706193076701,-1748.60074517,0.00059999,120]
[312751919,1706193076710,-1748.60074517,0.00059999,120]
[312751920,1706193076719,-1748.60074517,0.00059999,120]
[312751921,1706193076729,-1748.60074517,0.00059999,120]
[312751922,1706193076738,-1748.60074517,0.00059999,120]
[312751923,1706193076749,-1748.60074517,0.00059999,120]
[312751924,1706193076758,-1748.60074517,0.00059999,120]
[312751925,1706193076771,-1748.60074517,0.00059999,120]
[312751926,1706193076780,-1748.60074517,0.00059999,120]
[312751927,1706193076789,-1748.60074517,0.00059999,120]
[312751928,1706193076799,-1748.60074517,0.00059999,120]
[312751929,1706193076808,-1748.60074517,0.00059999,120]
[312751930,1706193076818,-1748.60074517,0.00059999,120]
[312751931,1706193076828,-1748.60074517,0.00059999,120]
[312751932,1706193076839,-1748.60074517,0.00059999,120]
[312751933,1706193076848,-1748.60074517,0.00059999,120]
[312751934,1706193076857,-1748.60074517,0.00059999,120]
[312751935,1706193076867,-1748.60074517,0.00059999,120]
[312751936,1706193076878,-1748.60074517,0.00059999,120]
[312751937,1706193076887,-1748.60074517,0.00059999,120]
[312751938,1706193076898,-1748.60074517,0.00059999,120]
[312751939,1706193076909,-1748.60074517,0.00059999,120]
[312751940,1706193076919,-1748.60074517,0.00059999,120]
[312751941,1706193076931,-1748.60074517,0.00059999,120]
[312751942,1706193076940,-1748.60074517,0.00059999,120]
[312751943,1706193076950,-1748.60074517,0.00059999,120]
[312751944,1706193076959,-1748.60074517,0.00059999,120]
[312751945,1706193076970,-1748.60074517,0.00059999,120]
[312751946,1706193076980,-1748.60074517,0.00059999,120]
[312751947,1706193076990,-1748.60074517,0.00059999,120]
[312751948,1706193076999,-1748.60074517,0.00059999,120]
[312751949,1706193077008,-1748.60074517,0.00059999,120]
[312751950,1706193077017,-1748.60074517,0.00059999,120]
[312751951,1706193077026,-1748.60074517,0.00059999,120]
[312751952,1706193077035,-1748.60074517,0.00059999,120]
[312751953,1706193077044,-1748.60074517,0.00059999,120]
[312751954,1706193077054,-1748.60074517,0.00059999,120]
[312751955,1706193077065,-1748.60074517,0.00059999,120]
[312751956,1706193077073,-1748.60074517,0.00059999,120]
[312751957,1706193077082,-1748.60074517,0.00059999,120]
[312751958,1706193077091,-1748.60074517,0.00059999,120]
[312751959,1706193077100,-1748.60074517,0.00059999,120]
[312751960,1706193077109,-1748.60074517,0.00059999,120]
[312751961,1706193077118,-1748.60074517,0.00059999,120]
[312751962,1706193077127,-1748.60074517,0.00059999,120]
[312751963,1706193077137,-1748.60074517,0.00059999,120]
[312751964,1706193077146,-1748.60074517,0.00059999,120]
[312751965,1706193077155,-1748.60074517,0.00059999,120]
[312751966,1706193077165,-1748.60074517,0.00059999,120]
[312751967,1706193077174,-1748.60074517,0.00059999,120]
[312751968,1706193077184,-1748.60074517,0.00059999,120]
[312751969,1706193077194,-1748.60074517,0.00059999,120]
[312751970,1706193077205,-1748.60074517,0.00059999,120]
[312751971,1706193077216,-1748.60074517,0.00059999,120]
[312751972,1706193077226,-1748.60074517,0.00059999,120]
[312751973,1706193077236,-1748.60074517,0.00059999,120]
[312751974,1706193077247,-1748.60074517,0.00059999,120]
[312751975,1706193077257,-1748.60074517,0.00059999,120]
[312751976,1706193077267,-1748.60074517,0.00059999,120]
[312751977,1706193077276,-1748.60074517,0.00059999,120]
[312751978,1706193077286,-1748.60074517,0.00059999,120]
[312751979,1706193077296,-1748.60074517,0.00059999,120]
[312751980,1706193077306,-500.0,0.00059999,120]
[312751981,1706193077318,-500.0,0.00059999,120]
[312751982,1706193077327,-500.0,0.00059999,120]
[312751983,1706193077338,-500.0,0.00059999,120]
[312751984,1706193077347,-500.0,0.00059999,120]
[312751985,1706193077357,-172.84,0.00059999,120]
[312751986,1706193077367,-50000.0,0.0006,50]
[312751987,1706193077375,-1303.22365895,0.0006,120]
[312751988,1706193077385,-6210.56662192,0.0006,120]
[312751989,1706193077394,-1034.1450577,0.0006,90]
[312751990,1706193077404,-2701.58327501,0.0006,120]
[312751991,1706193077413,-280.15637006,0.0006,30]
[312751992,1706193077423,-157.24489835,0.0006,60]
[312751993,1706193077432,-48840.04661702,0.0006,120]
[312751994,1706193077606,-155644.90766164,0.0006,120]
[312751995,1706193077622,-307.40360557,0.0006,120]
[312751996,1706193077634,-633.3355032,0.0006,120]
[312751997,1706193077648,-511.62184499,0.0006,120]
[312751998,1706193077661,-523.55681014,0.0006,120]
[312751999,1706193077693,-347.01473974,0.00050925,30]
[312752000,1706193077710,-3332.97664968,0.00050925,30]
[312752001,1706193077726,-2019.8,0.00050925,30]
[312752002,1706193077739,-1207.6,0.00050925,30]
[312752003,1706193077754,-1076.7,0.00050925,30]
[312752004,1706193077770,-305.51235568,0.00050925,30]
[312752005,1706193077782,-400.3,0.00050925,30]
[312752006,1706193077795,-259.56812837,0.00050925,30]
[312752007,1706193077811,-10273.52812653,0.00050925,30]
[312752008,1706193077821,-1649.08713778,0.00051598,4]
[312752009,1706193077834,-27765.53840983,0.00051598,4]
[312752010,1706193077845,-500.0,0.00054794,120]
[312752011,1706193077857,-500.0,0.00054794,120]
[312752012,1706193077867,-548.67,0.00054794,120]
[312752013,1706193077877,-500.0,0.00056438,7]
[312752014,1706193077887,-17930.53833183,0.0006,120]
[312752015,1706193077906,-392.0,0.0005145,30]
[312752016,1706193077918,-329.85,0.0005145,30]
[312752017,1706193077932,-1038.5919721,0.0005145,30]
[312752018,1706193077943,-3996.0,0.0005145,30]
[312752019,1706193078305,-629.64240114,0.0005145,30]
[312752020,1706193078320,-500.0,0.0005145,30]
[312752021,1706193078331,-10539.86459514,0.0005145,30]
[312752022,1706193078342,-1000.00005,0.0005145,30]
[312752023,1706193078555,-797.05098162,0.0005145,30]
[312752024,1706193078570,-569.5924431,0.00051974,4]
[312752025,1706193078579,-19223.0,0.00051975,30]
[312752026,1706193078591,-19223.0,0.000525,30]
[312752027,1706193078600,-155.0,0.00052868,2]
[312752028,1706193078610,-19223.0,0.00053025,30]
[312752029,1706193078621,-19223.0,0.0005355,30]
[312752030,1706193078630,-19223.0,0.00054075,30]
[312752031,1706193078641,-500.0,0.00055342,120]
[312752032,1706193078651,-500.0,0.00055342,120]
[312752033,1706193078661,-500.0,0.00055342,120]
[312752034,1706193078671,-548.67,0.00055342,120]
[312752035,1706193078681,-500.0,0.0005589,120]
[312752036,1706193078690,-500.0,0.0005589,120]
[312752037,1706193078701,-500.0,0.0005589,120]
[312752038,1706193078711,-548.67,0.0005589,120]
[312752039,1706193078720,-500.0,0.00056438,120]
[312752040,1706193078731,-500.0,0.00056438,120]
[312752041,1706193078740,-548.67,0.00056438,120]
[312752042,1706193078752,-500.0,0.00056986,7]
[312752043,1706193078762,-500.0,0.00056986,120]
[312752044,1706193078771,-548.67,0.00056986,120]
[312752045,1706193078781,-500.0,0.00057534,7]
[312752046,1706193078791,-500.0,0.00057534,120]
[312752047,1706193078800,-548.67,0.00057534,120]
[312752048,1706193078813,-500.0,0.00058082,7]
[312752049,1706193078823,-500.0,0.00058082,120]
[312752050,1706193078836,-548.67,0.00058082,120]
[312752051,1706193078847,-500.0,0.0005863,7]
[312752052,1706193078858,-548.67,0.0005863,120]
[312752053,1706193078867,-500.0,0.00059178,7]
[312752054,1706193078876,-548.67,0.00059178,120]
[312752055,1706193078885,-500.0,0.00059726,7]
[312752056,1706193078895,-376.26744976,0.0006,120]
[312752057,1706193078907,-528.5269001,0.0006,120]
[312752058,1706193078919,-297.1035,0.0006,120]
[312752059,1706193078931,-769.22529467,0.0006,120]
[312752060,1706193078943,-1779.28274773,0.0006,120]
[312752061,1706193078961,-262.27437928,0.0006,120]
[312752062,1706193078972,-397.63098387,0.0006,120]
[312752063,1706193078984,-50360.97876553,0.0006,120]
[312752064,1706193078995,-331.63193735,0.0006,120]
[312752065,1706193079045,-1231.72244051,0.0006,120]
[312752066,1706193079056,-304.27810018,0.0006,120]
[312752067,1706193079078,-500.0,0.00054794,120]
[312752068,1706193079087,-548.67,0.00059726,120]
[312752069,1706193079096,-1138.16952003,0.0006,120]
[312752070,1706193079108,-3867.4,0.0006,120]
[312752071,1706193079119,-321.88887296,0.0006,120]
[312752072,1706193079197,-218.19,0.00054794,120]
[312752073,1706193079207,-344.0,0.000588,30]
[312752074,1706193079217,-1068.51529645,0.0006,120]
[312752075,1706193079231,-1750.08934919,0.0006,120]
[312752076,1706193079243,-443.07349567,0.0006,120]
[312752077,1706193079254,-112525.33578151,0.0006,120]
[312752078,1706193079265,-2995.94360002,0.0006,120]
[312752079,1706193079276,-7616.84443699,0.0006,120]
[312752080,1706193079288,-87242.40677381,0.0006,120]
[312752081,1706193079297,-2500.0,0.0006,20]
[312752082,1706193079307,-5246.21178225,0.0006,95]
[312752083,1706193080818,-6015.52000002,0.0006,95]
[312752084,1706193080830,-291.32501378,0.0006,95]
[312752085,1706193080840,-500.0,0.0006,100]
[312752086,1706193080851,-10860.0,0.0006,120]
[312752087,1706193080861,-5481.0,0.0006,95]
[312752088,1706193080871,-211.0,0.0006,60]
[312752089,1706193080881,-158.0,0.0006,120]
[312752090,1706193080891,-199.59988663,0.0006002,120]
[312752091,1706193080902,-530.56571045,0.00060039,120]
[312752092,1706193080911,-19575.89568074,0.0006005,120]
[312752093,1706193080923,-3952.92573324,0.0006005,120]
[312752094,1706193080934,-310.18718975,0.0006005,120]
[312752095,1706193080949,-374.40390852,0.00056886,2]
[312752096,1706193080965,-84.21016671,0.00056886,2]
[312752097,1706193080975,-4470.49710675,0.0006005,120]
[312752098,1706193080986,-3038.9744695,0.0006005,120]
[312752099,1706193080998,-4914.38612525,0.0006005,120]
[312752100,1706193081100,-250.77499328,0.00054784,10]
[312752101,1706193081112,-311.63500672,0.00054784,10]
[312752102,1706193081122,-321.26,0.00059452,30]
[312752103,1706193081131,-369.89048947,0.00059452,30]
[312752221,1706194147262,-159.94,0.00027397,2]
[312752222,1706194147283,-159.94,0.00027945,2]
[312752223,1706194147303,-159.94,0.00028493,2]
[312752225,1706194147323,-159.94,0.00029041,2]
[312752226,1706194147342,-159.94,0.00029589,2]
[312752227,1706194147361,-150.0,0.00029683,2]
[312752228,1706194147381,-155.0,0.00030135,2]
[312752229,1706194147401,-5626.38614164,0.00030136,2]
[312752230,1706194147421,-159.94,0.00030137,2]
[312752231,1706194147443,-150.0,0.00030231,2]
[312752232,1706194147463,-499.99,0.00030231,2]
[312752233,1706194147483,-155.05338306,0.00030582,2]
[312752234,1706194147502,-400.0,0.00030682,2]
[312752235,1706194147522,-400.0,0.00030682,2]
[312752236,1706194147543,-400.0,0.00030682,2]
[312752237,1706194147563,-400.0,0.00030682,2]
[312752238,1706194147584,-17735.7604753,0.00030683,2]
[312752239,1706194147616,-37042.39743527,0.00030683,2]
[312752240,1706194147638,-159.94,0.00030685,2]
[312752241,1706194147657,-3108.0,0.00031,2]
[312752243,1706194147676,-621.37,0.00031,2]
[312752244,1706194147701,-159.94,0.00031233,2]
[312752245,1706194147720,-4640.72,0.00031691,2]
[312752246,1706194147738,-200.0,0.00031693,2]
[312752247,1706194147757,-2961.26959057,0.00031693,2]
[312752248,1706194147777,-159.94,0.00031781,2]
[312752249,1706194147795,-5000.0,0.00032,2]
[312752250,1706194147814,-159.94,0.00032329,2]
[312752251,1706194147834,-159.94,0.00032877,2]
[312752252,1706194147853,-150.0,0.000336,2]
[312752253,1706194147876,-1000.0,0.00034,4]
[312752254,1706194147896,-3000.0,0.00036,2]
[312752255,1706194147915,-161.26,0.00036009,2]
[312752256,1706194147934,-200.0,0.00036282,2]
[312752257,1706194147957,-240.0,0.00036348,2]
[312752258,1706194147976,-199.94,0.00036361,2]
[312752259,1706194147995,-2705.0,0.00036377,2]
[312752260,1706194148016,-164.13,0.00036391,15]
[312752261,1706194148037,-11443.07,0.00036415,2]
[312752262,1706194148060,-2000.0,0.00036424,2]
[312752263,1706194148080,-186.75,0.00036649,2]
[312752264,1706194148104,-250.0,0.00036649,2]
[312752265,1706194148123,-160.79,0.00036663,2]
[312752266,1706194148144,-250.0,0.00036692,2]
[312752267,1706194148163,-4578.0,0.00036775,2]
[312752268,1706194148184,-161.86,0.00036793,2]
[312752269,1706194148205,-181.65,0.00036947,2]
[312752270,1706194148225,-161.86,0.00037067,2]
[312752271,1706194148245,-250.0,0.00037269,111]
[312752272,1706194148267,-161.86,0.00037341,2]
[312752273,1706194148289,-1037.59,0.00037431,2]
[312752274,1706194148311,-161.86,0.00037615,2]
[312752275,1706194148332,-760.0,0.00037696,2]
[312752276,1706194148356,-152.32,0.000377,3]
[312752277,1706194148378,-152.32,0.000377,3]
[312752279,1706194148401,-152.32,0.000377,3]
[312752280,1706194148421,-2500.0,0.00037717,3]
[312752281,1706194148445,-188.63,0.00037804,2]
[312752282,1706194148466,-161.86,0.00037889,2]
[312752283,1706194148486,-161.86,0.00038162,2]
[312752284,1706194148506,-150.01,0.00038356,2]
[312752285,1706194148526,-161.86,0.00038436,2]
[312752286,1706194148545,-186.75,0.00038457,2]
[312752287,1706194148565,-161.86,0.0003871,2]
[312752288,1706194148585,-155.05338306,0.00038802,2]
[312752289,1706194148606,-161.26,0.00039919,2]
[312752290,1706194148625,-186.75,0.00040265,2]
[312752291,1706194148644,-240.0,0.00040891,2]
[312752292,1706194148664,-1325.928433,0.0004099,2]
[312752293,1706194148683,-3026.564051,0.0004099,2]
[312752294,1706194148705,-179.777452,0.0004099,2]
[312752295,1706194148726,-237.290713,0.0004099,2]
[312752296,1706194148746,-3000.0,0.00041,4]
[312752297,1706194148764,-21994.06,0.00041096,5]
[312752299,1706194148789,-152.32,0.000415,4]
[312752300,1706194148813,-152.32,0.000415,4]
[312752302,1706194149001,-152.32,0.000415,4]
[312752303,1706194149024,-1325.928433,0.00041502,30]
[312752304,1706194149046,-3026.564051,0.00041502,30]
[312752305,1706194149065,-237.290713,0.00041502,30]
[312752306,1706194149086,-840.85262393,0.00042,120]
[312752307,1706194149106,-159.0,0.00042,30]
[312752308,1706194149127,-1325.928433,0.00042015,30]
[312752309,1706194149148,-3026.564051,0.00042015,30]
[312752311,1706194149168,-237.290713,0.00042015,30]
[312752312,1706194149191,-186.75,0.00042073,2]
[312752313,1706194149211,-760.0,0.00042408,2]
[312752315,1706194149233,-3026.564051,0.00042527,30]
[312752316,1706194149253,-1325.928433,0.00042527,30]
[312752317,1706194149273,-237.290713,0.00042527,30]
[312752318,1706194149294,-2500.0,0.00042698,2]
[312752319,1706194149314,-1676.5457,0.00042798,2]
[312752320,1706194149333,-166.71512324,0.00042798,2]
[312752335,1706194154108,-155.0,0.0003,2]
[312752336,1706194154129,-2608.89420062,0.00042798,2]
[312752346,1706194167695,-840.85262393,0.00042,120]
[312752347,1706194167724,-4986.0,0.0004269,2]
[312752348,1706194167752,-2872.5186012,0.00042797,2]
[312752349,1706194167778,-89753.37847614,0.00042798,2]
[312752350,1706194167805,-13173.0,0.0004289,2]
[312752351,1706194167833,-472.40255941,0.00042895,11]
[312752352,1706194167859,-1591.12704772,0.00042898,15]
[312752353,1706194167884,-694.78275537,0.00042899,5]
[312752354,1706194167911,-96962.4327909,0.00042988,10]
[312752355,1706194167939,-162.11680976,0.00042995,2]
[312752356,1706194167965,-43047.82773449,0.00042997,4]
[312752357,1706194167991,-305149.69802282,0.00042998,2]
[312752358,1706194168017,-226.70008479,0.00042999,4]
[312752359,1706194168042,-85466.7814564,0.00043,30]
[312752360,1706194168068,-159.0,0.00043,30]
[312752361,1706194168099,-1325.928433,0.0004304,30]
[312752362,1706194168126,-3026.564051,0.0004304,30]
[312752363,1706194168152,-237.290713,0.0004304,30]
[312752364,1706194168179,-269.0,0.000431,3]
[312752365,1706194168204,-155.0,0.00043118,2]
[312752366,1706194168230,-1726.0,0.000432,3]
[312752367,1706194168254,-1233.0,0.00043797,2]
[312752368,1706194168281,-161.26,0.0004383,2]
[312752369,1706194168310,-729.25497149,0.00044,30]
[312752370,1706194168336,-159.0,0.00044,30]
[312752371,1706194168363,-159.0,0.00045,30]
[312752372,1706194168395,-152.32,0.000452,5]
[312752373,1706194168422,-152.32,0.000452,5]
[312752374,1706194168450,-152.32,0.000452,5]
[312752375,1706194168479,-240.0,0.00045435,2]
[312752376,1706194168507,-472.40255934,0.00045657,12]
[312752377,1706194168532,-162.04560652,0.00046,2]
[312752378,1706194168558,-155.05338306,0.00047022,2]
[312752379,1706194168583,-760.0,0.0004712,2]
[312752380,1706194168607,-156.86964326,0.00047332,30]
[312752381,1706194168631,-154.89324253,0.00047351,30]
[312752382,1706194168656,-154.89324253,0.00047404,30]
[312752383,1706194168681,-155.08765283,0.00047458,30]
[312752384,1706194168708,-431.0,0.0004749,2]
[312752385,1706194168733,-10074.73383512,0.00047584,2]
[312752386,1706194168761,-306.57765724,0.000476,7]
[312752387,1706194168786,-155.08765283,0.00047698,30]
[312752388,1706194168814,-161.26,0.0004774,2]
[312752389,1706194168840,-152.25945282,0.00047812,30]
[312752390,1706194168865,-1000.0,0.00047925,15]
[312752391,1706194168892,-156.86964326,0.00048003,30]
[312752392,1706194168923,-19894.88552205,0.00048174,21]
[312752393,1706194168952,-3850.44792401,0.00048174,20]
[312752394,1706194168979,-3215.25978464,0.00048174,20]
[312752395,1706194169006,-152.25945282,0.00048384,30]
[312752396,1706194169235,-155.08765283,0.00048404,30]
[312752397,1706194169262,-472.40255934,0.00048419,13]
[312752398,1706194169287,-153.90506381,0.0004843,30]
[312752399,1706194169311,-159.34897175,0.00048523,30]
[312752400,1706194169334,-500.0,0.000488,2]
[312752401,1706194169358,-155.08765283,0.00048945,30]
[312752402,1706194169382,-549.52388326,0.00049,30]
[312752403,1706194169409,-152.32,0.00049,6]
[312752404,1706194169437,-152.32,0.00049,6]
[312752405,1706194169466,-152.32,0.00049,6]
[312752406,1706194169490,-2400.0,0.00049315,30]